Cogmind - Beta 16.1 @@@ ROGUE MODE // 2026.04.01 @ 20:04:53 Player: Gatamar Result: Destroyed by G-34 Mercenary with Small Laser Performance ------------- Evolutions (0) 0 Regions Visited (1) 200 Robots Destroyed (13) 65 Value Destroyed (314) 314 Prototype IDs (0) 0 Alien Tech Used (0) 0 Bonus (0) 0 TOTAL SCORE: 579 Bonus ------- None Cogmind --------- Core Integrity 0/250 Matter 293/300 Energy 100/100 System Corruption 0% Temperature Cool (6) Movement Treading (320) Ox2 Location -10/Materials Parts ------- > --- POWER (1) -------- (None) > --- PROPULSION (2) --- Light Treads > --- UTILITY (2) ------ High-capacity Storage Unit > --- WEAPON (2) ------- Subdweller Machine Gun Battle Cannon > --- INVENTORY (20) --- Light Ion Engine Light Nuclear Core Compact Wheel Compact Wheel Medium Matter Pod (100) Medium Matter Pod (100) Structural Scanner Signal Interpreter Peak State ------------ > --- POWER ------------ Ion Engine > --- PROPULSION ------- Light Treads Light Treads > --- UTILITY ---------- Small Storage Unit Seismic Detector > --- WEAPON ----------- Assault Rifle Light Assault Rifle > --- INVENTORY -------- Light Ion Engine Compact Wheel Compact Wheel [Rating: 7] Favorites ----------- Power Ion Engine Engine Ion Engine Propulsion Light Treads Treads Light Treads Utility Seismic Detector Device Seismic Detector Storage Small Storage Unit Weapon Light Assault Rifle Ballistic Gun Light Assault Rifle Ballistic Cannon Battle Cannon Special Weapon Mining Laser Build | -11 -10 ------- Run | Yrd Mat Slots Evolved . | . . Power . | . . Propulsion . | . . Utility . | . . Weapon . | . . Parts Attached 13 | 6 7 Power 1 | 1 . Engine 1 | 1 . Core . | . . Reactor . | . . Propulsion 2 | 2 . Treads 2 | 2 . Leg . | . . Wheel . | . . Hover . | . . Flight . | . . Utility 5 | 2 3 Device 1 | 1 . Storage 4 | 1 3 Processor . | . . Hackware . | . . Protection . | . . Artifact . | . . Weapon 5 | 1 4 Energy Gun . | . . Energy Cannon . | . . Ballistic Gun 3 | 1 2 Ballistic Cannon 1 | . 1 Launcher . | . . Special Weapon 1 | . 1 Impact Weapon . | . . Slashing Weapon . | . . Piercing Weapon . | . . Special Melee Weapon . | . . Unidentified Prototypes . | . . Parts Lost 6 | . 6 Power 1 | . 1 Propulsion 1 | . 1 Utility 1 | . 1 Weapon 3 | . 3 Highest Loss Streak 6 | . 6 To Critical Strikes . | . . Average Backups 4 | 2 4 Power 1 | . 1 Propulsion 1 | 1 2 Utility 1 | . 1 Weapon . | . . Tool/Special . | . . Unused Backups 8 | . 8 Power 2 | . 2 Propulsion 2 | . 2 Utility 4 | . 4 Weapon . | . . Tool/Special . | . . Average Slot Usage (%) 91 | . 91 Engine 11 | . 11 Treads 25 | . 25 Device 11 | . 11 Storage 14 | . 14 Ballistic Gun 25 | . 25 Ballistic Cannon 1 | . 1 Peak Build Rating 7 | 6 7 Average Rating 6 | 4 6 On Entrance 3 | . 6 Avg Prop Armor Cover (%) . | . . Naked Turns . | . . Heaviest Build 49 | 12 49 Greatest Support 40 | 40 40 Greatest Overweight (x) 2 | 1 2 Average Overweight (x) . | . . Largest Inventory Capacity 20 | 8 20 Average Capacity 13 | 7 13 Most Carried 8 | 4 8 Average Carried 4 | 2 4 Final Capacity 20 | 8 20 Final Carried 8 | 4 8 Class Distribution -------------------- 100% | Mutant Dominant Class ---------------- Mutant | -10/Materials Resources | -11 -10 ----------- Run | Yrd Mat Matter Collected 668 | 257 411 Remotely . | . . Salvage Created 597 | 78 519 Parts 21 | 4 17 Haulers Intercepted . | . . Recyclers Shooed 2 | 1 1 Parts Field Recycled . | . . Retrieved Matter . | . . Parts Self-Destructed . | . . Prevented . | . . Parts Restored . | . . Kills | -11 -10 ------- Run | Yrd Mat Combat Hostiles Destroyed 7 | . 7 Guns 7 | . 7 Classes Destroyed 5 | 2 3 Worker 1 | . 1 Tunneler 1 | 1 . Recycler 4 | 1 3 Grunt 4 | . 4 Subdweller 3 | . 3 Best Kill Streak 3 | 1 3 Combat Bots Only 2 | . 2 Max Kills in Single Turn 1 | 1 1 Gunslinging . | . . Exploded . | . . Melee . | . . Uniques/NPCs Destroyed . | . . Combat | -11 -10 -------- Run | Yrd Mat Hostile Shots Fired 65 | . 65 Missed 17 | . 17 Hits 48 | . 48 Projectile 48 | . 48 Damage Taken 868 | . 868 Core 256 | . 256 Absorbed by Shields . | . . Core Remaining (%) 100 | 100 . Volleys Fired 56 | 11 45 Largest 2 | 1 2 Hottest 120 | 20 120 Shots Fired 93 | 11 82 Gun 89 | 11 78 Cannon 1 | . 1 Launcher . | . . Special 3 | . 3 Kinetic 90 | 11 79 Thermal 3 | . 3 Explosive . | . . Electromagnetic . | . . Robot Hit Streak 25 | 2 25 Robot Miss Streak 2 | 1 2 Penetration Max . | . . Secondary Targets . | . . Shots Hit Robots 69 | 7 62 Core Hits 29 | 4 25 Critical Kills . | . . Critical Parts Destroyed . | . . Critical Strikes . | . . Melee Attacks . | . . Impact . | . . Slashing . | . . Piercing . | . . Sneak Attacks . | . . Combat Hostiles . | . . Follow-up Attacks . | . . Damage Inflicted 802 | 54 748 Guns 763 | 54 709 Cannons 15 | . 15 Explosions . | . . Melee . | . . Ramming . | . . Kinetic 778 | 54 724 Thermal 24 | . 24 Explosive . | . . Electromagnetic . | . . Impact . | . . Slashing . | . . Piercing . | . . Highest Corruption . | . . Average Corruption . | . . Corruption Purged . | . . Corruption Blocked . | . . Overload Shots . | . . Overflow Damage . | . . Projectiles . | . . Explosions . | . . Melee . | . . Knockbacks . | . . Impact . | . . Kinetic . | . . Secondary . | . . Self-Inflicted Damage . | . . Shots . | . . Rammed . | . . Targets Rammed . | . . Kicked . | . . Crushed . | . . Highest Temperature 35 | . 35 Average Temperature 14 | . 14 Received Heat Transfer 276 | . 276 Siege Activations . | . . Martial Activations . | . . Shielding Activations . | . . Robots Disrupted . | . . Combat Hostiles . | . . Robots Corrupted . | . . Combat Hostiles . | . . Parts Fried . | . . Impact Corruptions . | . . Robots Melted . | . . Combat Hostiles . | . . Parts Melted 1 | . 1 Heat Transferred 50 | . 50 Parts Sabotaged . | . . Parts Stolen . | . . Parts Stripped . | . . Power Chain Reactions . | . . Alert | -11 -10 ------- Run | Yrd Mat Maximum Alert Level . | . . Low Security (%) 100 | 100 100 Level 1 . | . . Level 2 . | . . Level 3 . | . . Level 4 . | . . Level 5 . | . . High Security . | . . Max Security . | . . Peak Influence 50 | 5 50 Initial . | . . Average 5 | 1 6 Influence Increases 140 | 10 130 Destroy 0b10 Robot/C 80 | . 80 Destroy 0b10 Robot/NC 30 | 10 20 Destroy Leader 20 | . 20 Successful Hack 10 | . 10 Influence Decreases 135 | 10 125 Time Decay 135 | 10 125 Squads Dispatched . | . . Investigation . | . . Extermination . | . . Reinforcement . | . . Assault . | . . Garrison . | . . Intercept . | . . Searches Triggered . | . . Construction Impeded . | . . Haulers Reinforced . | . . Active Scanning Responses . | . . Cargo Convoy Interrupts . | . . Stealth | -11 -10 --------- Run | Yrd Mat Distress Signals 2 | . 2 Communications Jammed . | . . Distress Signals . | . . Times Spotted 18 | . 18 Peak Tracking Total 4 | . 4 Tactical Retreats 1 | . 1 Traps | -11 -10 ------- Run | Yrd Mat Traps Triggered . | . . Indirectly . | . . Trap Hack Attempts . | . . Triggered . | . . Disarmed . | . . Reprogrammed . | . . Reused . | . . Traps Extracted . | . . Installed . | . . Triggered . | . . Machines | -11 -10 ---------- Run | Yrd Mat Machines Disabled 1 | . 1 Max in Single Turn 1 | . 1 Machines Repaired . | . . Machines Dismantled . | . . Machines Sabotaged . | . . Overloaded Fab Kills . | . . Hacking | -11 -10 --------- Run | Yrd Mat Machines Accessed 2 | . 2 Terminals 2 | . 2 Fabricators . | . . Repair Stations . | . . Recycling Units . | . . Scanalyzers . | . . Garrison Access . | . . Total Hacks 4 | . 4 Successful 2 | . 2 Failed 2 | . 2 Catastrophic . | . . Database Lockouts . | . . Manual 4 | . 4 Terminals 4 | . 4 Fabricators . | . . Repair Stations . | . . Recycling Units . | . . Scanalyzers . | . . Garrison Access . | . . Terminal Hacks . | . . Fabricator Hacks . | . . Repair Station Hacks . | . . Recycling Unit Hacks . | . . Scanalyzer . | . . Garrison Access Hacks . | . . Unauthorized Hacks 2 | . 2 Terminals 2 | . 2 Track 1 | . 1 Botnet 1 | . 1 Fabricators . | . . Repair Stations . | . . Recycling Units . | . . Scanalyzers . | . . Garrison Access . | . . Data Cores Recovered . | . . Used . | . . Hacking Detections 2 | . 2 Full Trace Events . | . . Feedback Events . | . . Feedback Blocked . | . . Robot Schematics Acquired . | . . Robots Built . | . . Authchips . | . . Time . | . . Total Robot Build Rating . | . . Part Schematics Acquired . | . . Parts Built . | . . Authchips . | . . Time . | . . Total Part Build Rating . | . . Part Studies Acquired . | . . Parts Repaired . | . . Time . | . . Parts Recycled . | . . Recycled Matter . | . . Retrieved Matter . | . . Retrieved Components . | . . Parts Scanalyzed . | . . Part Schematics Acquired . | . . Parts Damaged . | . . Bothacking | -11 -10 ------------ Run | Yrd Mat Used RIF Installer . | . . Robots Hacked . | . . Non-combat . | . . Combat . | . . Robot Hacks Applied . | . . Relay Couplers Released . | . . Fabnet Peak Effective % . | . . Robots Rewired . | . . Allies Hacked . | . . Hacks Repelled . | . . Allies | -11 -10 -------- Run | Yrd Mat Total Allies . | . . Largest Group . | . . Highest-Rated Group . | . . Highest-Rated Ally . | . . Total Orders . | . . Ally Attacks . | . . Total Damage . | . . Kills . | . . Allies Corrupted . | . . Allies Melted . | . . Intel | -11 -10 ------- Run | Yrd Mat Active Infowar (turns) 959 | 34 925 Seismic 959 | 34 925 Robot Analysis Total . | . . Derelict Logs Recovered . | . . Drone Launches . | . . Drone Recoveries . | . . Exploration | -11 -10 ------------- Run | Yrd Mat Turns Passed 1240 | 141 1099 Spaces Moved 391 | 71 320 Core 5 | 5 . Treads 386 | 66 320 Legs . | . . Wheels . | . . Hover . | . . Flight . | . . Fastest Speed 50 | 50 160 Average Speed 196 | 153 205 Slowest Speed 320 | 160 320 Overloaded Moves . | . . Propulsion Burnouts . | . . Robots Hopped . | . . Potential Cave-ins . | . . Cave-ins Triggered . | . . Exploration Rate (%) 25 | 5 45 Regions Visited 1 Branch Regions . Pre-discovered Areas . | . . Known Exits Taken . | . . Unknown Exits Taken 1 | 1 . Scrap Searched . | . . Spaces Dug . | . . Terrain Destroyed . | . . Melee . | . . Projectile . | . . AOE . | . . Terrain Rammed . | . . Walls Destroyed . | . . Machines Disabled . | . . Actions | -11 -10 --------- Run | Yrd Mat Total 771 | 91 680 Wait 299 | . 299 Move 390 | 70 320 Hop . | . . Pick Up 10 | 4 6 Fast Attach 8 | 6 2 Attach 2 | . 2 Detach . | . . Swap 3 | . 3 Drop 3 | . 3 Fire 56 | 11 45 Melee . | . . Ram . | . . Kick . | . . Crush . | . . Escape Stasis . | . . Rewire . | . . Trap . | . . Miscellaneous . | . . Route ------- -11/Scrapyard -10/Materials (discovered 4 exits: [*Mat] / [*Min x2] / [*Sub]) History --------- Turn | Location | Event 26 | -11/Scrapyard | Discovered new exit (range 15) 142 | -11/Scrapyard | Entered Materials 284 | -10/Materials | Discovered new exit (range 5) 306 | -10/Materials | Build established: Mutant 369 | -10/Materials | Discovered new exit (range 8) 626 | -10/Materials | Discovered new exit (range 10) 681 | -10/Materials | Discovered new exit (range 9) 942 | -10/Materials | Derelicts attacked the area 1054 | -10/Materials | Core integrity fell below 50% 1080 | -10/Materials | Core integrity fell below 20% 1098 | -10/Materials | Lost 6 parts (1p1n1u3w) 1241 | -10/Materials | Destroyed by G-34 Mercenary with Small Laser Last Messages --------------- 01065_ Mining Laser destroyed. 01067_ Seismic Detector destroyed. 01073_ Acquired Sub. Machine Gun. 01080_ U-05 Engineer builds a Wall. 01084_ Sub. Monowheel melted. 01084_ HX-UA6(R) destroyed. 01085_ Acquired 9 matter. 01089_ Acquired 90 matter. 01091_ U-05 Engineer builds a Wall. 01096_ Acquired Battle Cannon. 01096_ R-06 Scavenger collects Mining Claw. 01100_ Acquired Structural Scanner. 01104_ U-05 Engineer builds a Wall. 01111_ Acquired Signal Interpreter. 01112_ Acquired 13 matter. 01131_ K-01 Serf collects debris. 01199_ W-16 Scout sends out distress signal. 01235_ R-06 Scavenger collects Mining Claw. 01240_ R-06 Scavenger destroyed. 01240_ K-01 Serf collects debris. Map ----- +----------------------------------------------------+ | ??????????????? """ ??????????# #??????? | | ???????????????? """ ??????????# #??????? | | ?????????????? ? ??????????# #??????? | | ?????????????? #??????????# #??????? | | ??????????????"" """ #????????### ######## | | ??????????? ?""" """ #????????# # # | | ??????????# """ """ ########## #= """# | | ??????????# # """# | | +?????????# ##+#### + R"# | | ##?####### """ """ # ## # """# | | ? """ """ # ## # # | | ^ ? """ """ # ## ######## | | ? # ## # # | | """ # ## # # | | """ ##### ## # # | | """ ############## #???# ## + # | | #????????????# #???# ## # # | | ? #????????????# #???# ## # # | | ??# #????????????# #???####### # # | | #?## ####?????????#%#?????????# # # | | #?# ""#?????????# #?????????# # # | | #?# != "#?????????#/#####?????#^ ^# # | | #?# ! ! "#?????????#gg ! #######^ ^# # | | #?# <[ ""#?????????# !%* # # | | #?# "#?????????#